bitfinex-derivatives/quotes_ETHF0:USTF0_20241231
["timestamp","ask_amount","ask_price","bid_price","bid_amount"]
[1735669427018,1.80567647,3354.0,3353.5,0.8861]
[1735669427207,0.2986,3353.8,3353.6,0.29861]
[1735669428015,1.80567647,3354.0,3352.9,0.7467]
[1735669428213,0.29861,3353.7,3353.5,0.76532]
[1735669428419,1.80567647,3354.0,3353.5,0.4667]
[1735669428612,0.29859,3353.9,3353.7,0.2986]
[1735669428924,0.29859,3353.9,3353.8,0.2986]
[1735669429112,1.80567647,3354.0,3353.5,0.4667]
[1735669429318,3.2078,3354.1,3354.0,0.29858]
[1735669430416,1.80567647,3354.3,3353.8,3.2078]
[1735669430612,1.80567647,3354.3,3354.2,0.29856]
[1735669431119,1.80567647,3354.3,3354.0,0.4615]
[1735669431321,0.29857,3354.1,3354.0,0.4615]
[1735669431718,0.29857,3354.1,3354.0,0.76008]
[1735669432618,0.29858,3354.0,3353.9,0.4212]
[1735669432813,0.29861,3353.6,3353.5,0.4667]
[1735669433019,0.29867,3353.0,3352.9,0.73417]
[1735669433218,0.29867,3353.0,3352.9,0.4641]
[1735669434122,0.29866,3353.1,3352.9,0.4641]
[1735669434325,0.29867,3353.0,3352.9,0.4641]
[1735669434628,3.2078,3353.2,3352.9,0.4641]
[1735669434821,0.29867,3353.0,3352.9,0.4641]
[1735669436317,0.29869,3352.7,3352.6,0.00305075]
[1735669436517,0.29867,3353.0,3352.8,0.29869]
[1735669436723,3.2078,3353.2,3352.6,0.00305075]
[1735669436924,3.50646,3353.2,3353.0,0.29866]
[1735669437926,0.29866,3353.1,3353.0,0.29867]
[1735669438721,3.50646,3353.2,3353.1,0.29866]
[1735669439026,0.29866,3353.2,3353.1,0.29866]
[1735669439226,0.29866,3353.1,3353.0,0.29866]
[1735669439426,0.29865,3353.2,3353.1,0.29865]
[1735669440925,0.29863,3353.5,3353.4,0.29863]
[1735669441128,3.2078,3353.6,3352.6,3.95760075]
[1735669441334,0.29867,3353.1,3353.0,0.29866]
[1735669441628,0.29867,3353.1,3353.0,0.29867]
[1735669442331,1.80567647,3353.3,3352.6,3.21085075]
[1735669442527,2.10431647,3353.3,3353.2,0.29865]
[1735669442722,0.29864,3353.4,3353.3,0.29863]
[1735669443125,0.29865,3353.3,3353.2,0.29865]
[1735669443328,5.01347647,3353.6,3352.7,0.74674]
[1735669443630,5.01347647,3353.6,3353.3,0.29864]
[1735669443631,0.29863,3353.4,3353.3,0.29864]
[1735669445032,0.29865,3353.3,3353.2,0.29865]
[1735669446630,5.01347647,3353.6,3353.0,0.4603]
[1735669446836,0.2986,3353.8,3353.7,0.2986]
[1735669447039,2.34521156,3353.9,3353.8,0.2986]
[1735669448836,5.69346952,3354.4,3353.8,0.2986]
[1735669448837,2.34521156,3354.7,3354.1,0.29856]
[1735669449035,0.29855,3354.4,3354.2,0.29855]
[1735669449338,2.34521156,3354.7,3353.9,0.442]
[1735669449339,2.34521156,3354.7,3354.1,0.29856]
[1735669449639,3.09153156,3354.7,3354.0,0.4631]
[1735669449839,0.29856,3354.3,3354.1,0.29856]
[1735669450042,0.29856,3354.3,3354.1,0.75836]
[1735669450540,3.32582369,3354.8,3354.1,0.4598]
[1735669450732,2.57954369,3354.8,3354.1,0.4598]
[1735669450936,3.50633,3354.5,3354.4,0.29854]
[1735669451140,3.2078,3354.5,3354.4,0.29854]
[1735669451336,3.50633,3354.5,3354.4,0.29854]
[1735669451836,0.29862,3353.6,3353.5,0.29862]
[1735669452037,1.80567647,3353.6,3353.3,3.6603]
[1735669452235,3.2078,3353.9,3353.8,0.2986]
[1735669452434,3.50639,3353.9,3353.7,0.2986]
[1735669452647,0.2986,3353.8,3353.7,0.2986]
[1735669452831,3.2078,3353.9,3353.7,0.2986]
[1735669453036,3.2078,3353.9,3353.3,3.6603]
[1735669453472,0.2986,3353.8,3353.6,0.29861]
[1735669453871,3.2078,3353.9,3353.3,3.6603]
[1735669454164,0.29863,3353.4,3353.3,0.4525]
[1735669455560,3.2078,3353.9,3353.3,0.4525]
[1735669456056,0.29862,3353.6,3353.4,0.29862]
[1735669456256,0.29863,3353.4,3353.3,0.4525]
[1735669456767,0.7465,3353.8,3353.5,0.29862]
[1735669456768,2.34521156,3353.6,3353.5,0.29862]
[1735669457358,2.64383156,3353.6,3353.4,0.29863]
[1735669457568,2.34521156,3353.6,3353.4,0.29863]
[1735669457966,0.29863,3353.4,3353.3,0.4525]
[1735669458155,1.80567647,3353.4,3352.5,3.2078]
[1735669458374,0.29869,3352.7,3352.5,3.2078]
[1735669458871,0.29869,3352.7,3352.4,0.8797]
[1735669459164,5.01347647,3353.1,3352.4,0.8797]
[1735669459363,0.29869,3352.7,3352.5,0.2987]
[1735669459565,0.29869,3352.7,3352.4,0.8797]
[1735669459768,3.50649,3352.7,3352.4,0.8797]
[1735669460464,3.50649,3352.7,3351.4,1.80567647]
[1735669460752,3.50649,3352.7,3351.8,0.8681]
[1735669460968,3.50649,3352.7,3352.0,0.29875]
[1735669461265,3.50649,3352.7,3352.1,0.29874]
[1735669461548,3.50649,3352.7,3352.4,0.29871]
[1735669461945,3.50649,3352.7,3351.8,0.8681]
[1735669462349,3.2078,3352.7,3352.6,0.30175075]
[1735669462945,1.64541156,3352.8,3352.7,0.29869]
[1735669463141,3.51781734,3352.9,3352.8,0.29869]
[1735669463352,0.8041289,3352.9,3352.8,0.29869]
[1735669463645,1.80567647,3353.4,3352.7,3.6736]
[1735669463856,1.80567647,3353.4,3352.9,0.29867]
[1735669464067,0.29865,3353.2,3352.9,0.29867]
[1735669464459,3.2078,3353.5,3352.7,3.6736]
[1735669464768,3.2078,3353.5,3353.2,0.29865]
[1735669464769,3.50643,3353.5,3353.2,0.29865]
[1735669465167,3.2078,3353.5,3352.7,3.6736]
[1735669465372,0.29865,3353.3,3352.9,0.29867]
[1735669465761,3.2078,3353.5,3353.2,0.29864]
[1735669465965,0.4257,3353.9,3353.2,3.2078]
[1735669466164,7.87722432,3354.0,3353.2,3.2078]
[1735669466467,4.66942432,3354.0,3353.9,0.29859]
[1735669466663,0.29863,3353.5,3353.2,0.29865]
[1735669466974,5.01347647,3353.7,3352.9,3.63]
[1735669467172,4.66942432,3354.0,3353.3,3.2078]
[1735669467378,4.96800432,3354.0,3353.3,3.2078]
[1735669467576,4.96800432,3354.0,3353.7,0.2986]
[1735669467873,0.29859,3353.9,3353.3,4.5358]
[1735669468080,0.4294,3354.1,3353.3,4.5358]
[1735669468270,0.4294,3354.1,3353.8,0.29859]
[1735669468579,0.4294,3354.1,3353.7,0.2986]
[1735669468580,0.29859,3353.9,3353.7,0.2986]
[1735669469675,0.4294,3354.1,3353.4,0.4576]
[1735669470184,0.29859,3353.9,3353.6,0.29861]
[1735669470376,0.29859,3353.9,3353.7,0.2986]
[1735669470578,0.29859,3353.9,3353.4,0.4576]
[1735669470880,5.44287647,3354.1,3353.3,1.328]
[1735669471087,0.29863,3353.5,3353.3,1.62664]
[1735669471580,0.29861,3353.7,3353.3,1.328]
[1735669471776,0.29863,3353.5,3353.3,1.328]
[1735669472177,0.29862,3353.6,3353.4,0.29863]
[1735669472479,0.29863,3353.5,3353.3,1.62664]
[1735669472768,3.2078,3353.7,3352.9,3.63]
[1735669472966,3.2078,3353.7,3352.6,0.44455075]
[1735669472967,1.80567647,3353.2,3352.6,0.00305075]
[1735669473167,0.29869,3352.7,3352.6,0.00305075]
[1735669475864,3.2078,3352.9,3352.6,0.00305075]
[1735669476248,0.29869,3352.7,3352.6,0.00305075]
[1735669478650,5.01347647,3352.9,3352.6,0.00305075]
[1735669478951,3.2078,3352.9,3352.6,0.00305075]
[1735669479357,3.2078,3352.9,3352.8,0.29869]
[1735669480255,0.29867,3353.0,3352.8,0.29869]
[1735669480856,0.9169,3353.1,3352.6,0.00305075]
[1735669481053,4.68442809,3353.3,3352.6,1.80872722]
[1735669481358,4.68442809,3353.3,3353.2,0.29865]
[1735669481660,0.29865,3353.2,3352.8,3.2078]
[1735669481861,0.29865,3353.2,3353.1,0.29866]
[1735669482557,10.11910456,3353.8,3352.9,0.4606]
[1735669482755,0.29864,3353.3,3353.1,0.29865]
[1735669483060,0.29861,3353.7,3353.4,0.29863]
[1735669483261,5.43467647,3353.8,3353.0,0.4263]
[1735669483563,0.29862,3353.6,3353.1,0.29866]
[1735669483859,0.29862,3353.6,3353.4,0.29863]
[1735669484063,5.43467647,3353.8,3353.3,0.29864]
[1735669484354,0.29862,3353.5,3353.0,0.4263]
[1735669484560,1.80567647,3353.1,3352.9,0.4606]
[1735669484762,0.29869,3352.8,3352.6,7.2493449]
[1735669484954,0.29869,3352.7,3352.6,6.9506449]
[1735669485966,0.29869,3352.7,3352.6,0.00305075]
[1735669487556,4.0921,3353.0,3352.6,0.00305075]
[1735669487758,0.29868,3352.9,3352.6,0.00305075]
[1735669487960,0.29866,3353.2,3353.0,0.29867]
[1735669488260,0.29866,3353.1,3352.9,0.29867]
[1735669488462,0.29865,3353.3,3353.1,0.29866]
[1735669488651,0.8791,3353.5,3352.7,3.2078]
[1735669488855,0.8791,3353.5,3353.4,0.29863]
[1735669489156,0.29861,3353.7,3353.4,0.29863]
[1735669489359,0.29862,3353.6,3353.4,0.29863]
[1735669489956,0.29864,3353.4,3353.2,0.29865]
[1735669490770,0.29862,3353.6,3353.4,0.29863]
[1735669491064,1.80567647,3353.7,3353.0,3.6646]
[1735669491273,0.29863,3353.5,3353.3,0.29864]
[1735669491567,0.29864,3353.4,3353.0,3.6646]
[1735669491864,0.29863,3353.5,3353.0,3.6646]
[1735669492054,1.80567647,3353.7,3353.0,3.6646]
[1735669492260,0.29865,3353.2,3353.1,0.29866]
[1735669492459,0.29865,3353.3,3353.1,0.29866]
[1735669492768,0.29865,3353.2,3353.1,0.29866]
[1735669493066,1.80567647,3353.7,3353.0,0.4568]
[1735669493267,3.2078,3353.8,3353.0,3.6646]
[1735669493672,3.2078,3353.8,3353.4,0.29863]
[1735669493967,3.2078,3353.8,3353.0,3.6646]
[1735669494170,3.2078,3353.8,3353.5,0.29862]
[1735669494366,0.29861,3353.6,3353.1,0.74665]
[1735669494664,0.29861,3353.6,3353.4,0.29863]
[1735669495060,0.29861,3353.7,3353.5,0.29862]
[1735669495263,0.29861,3353.7,3353.1,0.74665]
[1735669495475,3.2078,3353.8,3353.2,0.29865]
[1735669495656,3.2078,3353.8,3353.1,1.80567647]
[1735669495965,3.2078,3353.8,3353.7,0.29861]
[1735669496171,4.68442809,3354.2,3353.4,3.95437]
[1735669496464,4.98298809,3354.2,3353.7,0.29861]
[1735669496662,4.98298809,3354.2,3353.6,0.74653]
[1735669496663,4.98298809,3354.2,3354.0,0.29857]
[1735669497169,0.29856,3354.2,3354.0,0.29857]
[1735669497369,0.29856,3354.2,3353.7,0.4308]
[1735669497572,0.29858,3354.0,3353.7,0.4308]
[1735669497768,0.29858,3354.0,3353.9,0.29859]
[1735669497974,5.01347647,3354.3,3353.7,0.4308]
[1735669498593,0.29859,3353.9,3353.8,0.29859]
[1735669498768,3.2078,3353.9,3353.6,0.00253802]
[1735669498969,2.10428647,3353.7,3353.6,0.00253802]
[1735669500572,2.10428647,3353.7,3352.6,10.15539415]
[1735669500573,6.80567647,3353.7,3352.6,10.15539415]
[1735669500774,1.80567647,3353.3,3352.6,10.15539415]
[1735669501085,0.29868,3352.9,3352.8,0.29868]
[1735669501377,0.29869,3352.8,3352.7,0.29869]
[1735669501781,0.29869,3352.7,3352.6,3.5065]
[1735669502077,1.80567647,3353.0,3352.6,3.2078]
[1735669502381,0.29869,3352.8,3352.6,0.2987]
[1735669502585,5.01347647,3353.0,3352.3,1.20602]
[1735669502774,0.29869,3352.8,3352.3,0.4592]
[1735669502975,5.01347647,3353.0,3352.5,0.29871]
[1735669503177,5.01347647,3353.0,3352.3,0.4592]
[1735669503482,0.29872,3352.5,3352.3,0.29872]
[1735669503778,5.01347647,3353.0,3352.2,3.2078]
[1735669503973,0.4513,3352.9,3352.2,3.2078]
[1735669504180,0.29871,3352.6,3352.4,0.29871]
[1735669504378,3.2078,3353.0,3352.8,0.29869]
[1735669504674,0.29867,3353.1,3352.9,0.29867]
[1735669504874,7.89222809,3353.4,3352.6,3.2078]
[1735669505069,8.19086809,3353.4,3353.2,0.29865]
[1735669505270,7.89222809,3353.4,3353.2,0.29865]
[1735669505474,8.19085809,3353.4,3352.8,2.50391]
[1735669505676,0.29865,3353.3,3353.1,0.29865]
[1735669505884,7.89222809,3353.4,3353.2,0.29865]
[1735669506079,8.19086809,3353.4,3353.2,0.29865]
[1735669506282,3.50644,3353.4,3353.2,0.29865]
[1735669506474,0.29864,3353.3,3353.2,0.29865]
[1735669506689,3.50644,3353.4,3353.2,0.29865]
[1735669506879,0.4513,3353.5,3353.4,0.29863]
[1735669507175,0.4585,3353.8,3353.0,3.95446]
[1735669507176,0.4585,3353.8,3353.7,0.29861]
[1735669507380,4.68442809,3354.1,3354.0,0.29858]
[1735669507577,5.11172809,3354.2,3353.5,0.74657]
[1735669507776,0.29859,3353.9,3353.4,3.2078]
[1735669508081,6.91740456,3354.2,3353.4,3.2078]
[1735669508275,0.29858,3354.0,3353.8,0.29859]
[1735669508682,2.23297647,3354.2,3353.5,0.74657]
[1735669508977,0.29859,3353.9,3353.4,3.6524]
[1735669509279,2.23297647,3354.2,3353.4,3.6524]
[1735669509481,0.4273,3354.2,3354.0,0.29858]
[1735669509681,0.72586,3354.2,3354.0,0.29858]
[1735669510073,0.29858,3354.1,3353.9,0.29858]
[1735669510775,0.72587,3354.2,3354.0,0.29857]
[1735669511080,0.72587,3354.2,3353.6,0.74654]
[1735669511081,0.29858,3354.0,3353.8,0.29859]
[1735669511276,0.29858,3354.0,3353.9,0.29859]
[1735669511580,2.23297647,3354.2,3353.5,1.7687]
[1735669511780,0.29855,3354.4,3354.2,0.29856]
[1735669512076,0.29855,3354.3,3354.2,0.29856]
[1735669512277,0.29855,3354.4,3354.2,0.29856]
[1735669512478,1.80567647,3354.5,3353.9,3.2078]
[1735669512683,0.29855,3354.4,3354.3,0.29855]
[1735669512877,0.29855,3354.4,3353.9,3.2078]
[1735669513090,0.9045,3354.6,3353.9,3.2078]
[1735669513378,0.29855,3354.4,3354.3,0.29855]
[1735669514284,0.29856,3354.3,3354.2,0.29856]
[1735669514803,0.29858,3354.1,3354.0,0.29857]
[1735669515485,0.29857,3354.2,3354.1,0.29856]
[1735669517483,3.2078,3354.3,3353.6,0.4301]
[1735669517683,0.29858,3354.0,3353.9,0.29858]
[1735669517876,3.2078,3354.3,3353.9,0.29858]
[1735669518085,0.29857,3354.1,3354.0,0.29857]
[1735669518681,0.29861,3353.7,3353.6,0.29861]
[1735669518886,0.2986,3353.8,3353.6,0.29861]
[1735669519083,0.2986,3353.8,3353.3,0.29863]
[1735669519289,0.29862,3353.6,3353.5,0.29862]
[1735669519981,0.2986,3353.8,3353.7,0.2986]
[1735669520178,0.439,3354.0,3353.2,3.95443]
[1735669520376,0.29861,3353.7,3353.6,0.29861]
[1735669520785,0.439,3354.0,3353.1,7.40349415]
[1735669520786,0.29862,3353.6,3353.4,0.29862]
[1735669520985,0.29864,3353.4,3353.2,0.29864]
[1735669521188,0.4496,3353.8,3352.9,0.4452]
[1735669521490,0.29862,3353.5,3353.4,0.29863]
[1735669521784,1.19612,3353.8,3353.2,0.29864]
[1735669521987,0.29864,3353.4,3353.2,0.29864]
[1735669522285,0.29864,3353.4,3353.3,0.29864]
[1735669522890,1.80567647,3353.8,3353.4,0.29863]
[1735669523190,3.2078,3353.9,3353.0,1.80567647]
[1735669523386,3.2078,3353.9,3353.8,0.2986]
[1735669523691,5.12342809,3354.0,3353.9,0.29859]
[1735669523692,4.68442809,3354.0,3353.9,0.29859]
[1735669524084,0.29859,3353.9,3353.8,3.2078]
[1735669524388,4.68442809,3354.0,3353.5,1.326]
[1735669524580,4.68442809,3354.0,3353.9,0.29859]
[1735669524793,3.2078,3354.3,3353.8,0.29859]
[1735669525091,0.29859,3354.0,3353.8,0.29859]
[1735669525283,3.2078,3354.3,3353.6,0.4263]
[1735669525482,3.2078,3354.3,3353.8,0.29859]
[1735669525790,0.29859,3353.9,3353.8,0.29859]
[1735669526189,0.29859,3353.9,3353.7,0.2986]
[1735669526691,0.29859,3353.9,3353.8,0.2986]
[1735669526886,6.72173142,3354.3,3353.6,0.4263]
[1735669527192,6.72173142,3354.3,3354.2,0.29856]
[1735669527884,0.29855,3354.3,3354.2,0.29856]
[1735669528489,0.29855,3354.3,3354.1,0.29856]
[1735669528792,0.29855,3354.3,3354.2,0.29856]
[1735669530985,6.72173142,3354.5,3353.8,0.7465]
[1735669531186,3.51393142,3354.5,3354.4,0.29854]
[1735669532386,3.51393142,3354.8,3354.7,0.29852]
[1735669532888,3.51393142,3354.8,3354.6,0.29852]
[1735669533094,0.29852,3354.7,3354.3,2.6249]
[1735669533595,3.51393142,3354.8,3354.7,0.29852]
[1735669533887,6.72173142,3355.0,3354.3,7.6249]
[1735669534089,3.51393142,3355.0,3354.9,0.2985]
[1735669535790,1.15934,3355.6,3354.6,3.9541]
[1735669535791,0.29845,3355.5,3355.3,0.29846]
[1735669536096,0.29845,3355.5,3355.0,3.2078]
[1735669536287,0.29845,3355.5,3355.1,0.29848]
[1735669536490,0.29845,3355.5,3355.4,0.29845]
[1735669536793,1.15935,3355.6,3355.4,0.29845]
[1735669537000,0.29845,3355.5,3355.3,0.29846]
[1735669537488,0.8609,3355.6,3355.4,0.29845]
[1735669537685,1.15934,3355.6,3355.4,0.29845]
[1735669538290,0.8609,3355.6,3355.5,0.29845]
[1735669538485,1.15934,3355.6,3355.0,3.629]
[1735669538685,0.8609,3355.6,3355.0,3.629]
[1735669538886,0.29846,3355.4,3355.0,3.629]
[1735669539088,0.29846,3355.4,3355.3,0.29846]
[1735669539282,0.29848,3355.1,3355.0,3.2078]
[1735669539485,0.29848,3355.1,3354.7,0.29851]
[1735669539486,0.2985,3354.9,3354.7,0.29851]
[1735669539687,0.29849,3355.0,3354.8,0.2985]
[1735669540085,0.29849,3355.0,3354.7,0.29851]
[1735669540288,0.4378,3355.0,3354.4,5.09075166]
[1735669540498,0.29851,3354.8,3354.6,0.29852]
[1735669540791,0.29851,3354.8,3354.7,0.29852]
[1735669540993,0.4378,3355.0,3354.4,0.461]
[1735669541188,0.29852,3354.8,3354.5,0.29853]
[1735669541394,0.29852,3354.8,3354.6,0.29852]
[1735669541594,0.29852,3354.8,3354.4,0.461]
[1735669541794,0.4378,3355.0,3354.7,0.29852]
[1735669541998,3.2078,3355.1,3355.0,0.29849]
[1735669542198,3.2078,3355.1,3354.5,1.80567647]
[1735669542199,3.51393142,3355.0,3354.9,3.5063]
[1735669543694,4.25127142,3355.6,3355.3,0.29846]
[1735669544095,3.95283142,3355.6,3355.4,0.29845]
[1735669544493,4.25127142,3355.6,3355.4,0.29845]
[1735669544695,3.95283142,3355.6,3355.4,0.29845]
[1735669544891,3.95283142,3355.6,3355.5,0.29845]
[1735669545197,4.25127142,3355.6,3354.9,4.5318]
[1735669545394,0.73734,3355.6,3355.4,0.29845]
[1735669546397,0.73734,3355.6,3355.3,0.29846]
[1735669546597,0.4389,3355.6,3355.0,0.74622]
[1735669546795,0.4389,3355.6,3355.5,0.29845]
[1735669548000,3.51393142,3355.7,3355.6,0.29844]
[1735669548192,3.51393142,3355.7,3355.6,2.10411647]
[1735669548393,3.51393142,3355.7,3355.6,0.29844]
[1735669548593,3.51393142,3355.7,3355.6,2.10411647]
[1735669549193,3.51393142,3355.7,3355.6,0.29844]
[1735669550486,0.4515,3355.9,3355.8,0.29842]
[1735669553002,0.4242,3356.4,3355.7,3.2078]
[1735669553300,0.4242,3356.4,3355.8,0.74605]
[1735669553494,0.4242,3356.4,3356.3,0.29837]
[1735669554798,0.4251,3356.6,3356.5,0.29836]
[1735669555099,3.2078,3356.7,3356.6,0.29835]
[1735669556501,0.8878,3357.2,3356.5,1.324]
[1735669556708,1.80567647,3356.7,3355.5,4.62975166]
[1735669557004,0.74581,3356.9,3355.5,4.62975166]
[1735669557005,0.2984,3356.0,3355.7,0.29842]
[1735669557298,0.29841,3355.9,3355.5,5.08535166]
[1735669557504,5.01347647,3356.4,3355.5,5.08535166]
[1735669557505,0.29842,3355.8,3355.5,4.92819166]
[1735669557702,0.4358,3356.3,3355.4,3.2078]
[1735669558007,0.4358,3356.3,3355.5,1.80567647]
[1735669558308,0.29839,3356.2,3356.0,0.2984]
[1735669558718,0.4358,3356.3,3355.8,3.2078]
[1735669558906,0.29841,3356.0,3355.8,3.50622]
[1735669559107,0.4358,3356.3,3355.8,3.2078]
[1735669559307,0.2984,3356.1,3355.9,0.29841]
[1735669559604,0.425,3356.6,3355.9,0.74602]
[1735669559808,3.2078,3356.8,3356.7,0.29834]
[1735669560005,3.2078,3356.8,3356.2,3.95377]
[1735669560206,0.29834,3356.7,3356.2,3.2078]
[1735669560406,3.2078,3356.8,3356.2,3.2078]
[1735669560708,3.2078,3356.8,3356.0,0.9107]
[1735669560709,0.29837,3356.3,3356.1,0.29839]
[1735669561009,0.29836,3356.5,3356.3,0.29837]
[1735669561203,0.29836,3356.5,3356.1,0.29839]
[1735669561402,0.29838,3356.3,3356.1,0.29839]
[1735669562005,0.8643,3356.6,3356.0,0.4556]
[1735669562207,0.29839,3356.2,3356.0,0.754]
[1735669562405,0.8643,3356.6,3355.8,5.01347647]
[1735669562711,0.29839,3356.2,3356.0,0.2984]
[1735669563004,0.29839,3356.2,3355.7,1.7494]
[1735669563005,2.26477647,3356.1,3355.1,0.7462]
[1735669563213,2.26477647,3356.1,3354.9,9.64322813]
[1735669563214,0.29845,3355.5,3355.3,0.29846]
[1735669563411,5.01347647,3355.8,3355.3,0.29846]
[1735669563617,0.4391,3355.4,3355.3,0.29846]
[1735669564507,3.2078,3355.8,3355.1,1.80567647]
[1735669564808,3.2078,3355.8,3355.7,0.29843]
[1735669565009,0.29841,3355.9,3355.7,0.29843]
[1735669565209,0.4391,3356.0,3355.6,0.29843]
[1735669565210,0.29842,3355.8,3355.6,0.29843]
[1735669565711,0.4391,3356.0,3355.4,3.2078]
[1735669566014,0.4391,3356.0,3355.3,0.29846]
[1735669566015,0.29843,3355.7,3355.3,0.29846]
[1735669566305,1.80567647,3355.8,3355.3,0.29846]
[1735669566306,0.29844,3355.6,3355.3,0.29845]
[1735669566615,0.4391,3356.0,3355.9,0.29841]
[1735669566918,0.4391,3356.0,3355.4,3.2078]
[1735669567115,0.4391,3356.0,3355.8,0.29841]
[1735669567307,0.7375,3356.0,3355.8,0.29841]
[1735669568112,0.4591,3356.1,3355.5,0.4592]
[1735669568113,0.4591,3356.1,3355.5,1.7832]
[1735669568309,0.449,3356.5,3356.4,0.29837]
[1735669568514,3.51393142,3356.6,3356.5,0.29836]
[1735669569122,3.51393142,3356.6,3356.2,0.4632]
[1735669569123,3.51393142,3356.7,3356.6,0.29835]
[1735669570010,3.51393142,3356.7,3356.4,1.324]
[1735669570210,3.51393142,3356.7,3356.5,0.29836]
[1735669570411,0.29835,3356.6,3356.4,1.62236]
[1735669570715,0.29833,3356.8,3356.6,0.29835]
[1735669570905,0.74574,3357.2,3356.4,1.324]
[1735669571108,0.29842,3355.8,3355.6,0.29843]
[1735669571307,0.29839,3356.1,3355.5,3.2078]
[1735669571504,0.29843,3355.7,3355.5,3.50624]
[1735669571905,1.3302,3356.3,3355.5,3.2078]
[1735669572110,0.29838,3356.2,3355.8,0.29841]
[1735669572316,0.2984,3356.1,3355.9,0.29841]
[1735669572512,1.3302,3356.3,3355.5,3.2078]
[1735669572709,0.884,3356.3,3355.5,3.2078]
[1735669573213,0.2984,3356.0,3355.8,0.29841]
[1735669573919,0.2984,3356.1,3355.9,0.29841]
[1735669574206,0.884,3356.3,3355.5,3.2078]
[1735669574406,0.884,3356.3,3355.8,0.29841]
[1735669574608,0.29841,3355.9,3355.7,0.29842]
[1735669574810,0.884,3356.3,3355.5,3.2078]
[1735669574811,0.29841,3356.0,3355.8,0.29841]
[1735669576112,0.2984,3356.1,3355.9,0.29841]
[1735669577311,0.2984,3356.1,3356.0,0.2984]
[1735669577709,4.0918,3356.3,3355.5,3.2078]
[1735669577914,0.29839,3356.1,3355.5,3.2078]
[1735669578115,0.29839,3356.1,3355.6,0.29844]
[1735669578324,0.29839,3356.1,3355.9,0.29841]
[1735669578518,0.29839,3356.1,3355.5,3.2078]
[1735669578725,0.29839,3356.1,3356.0,0.2984]
[1735669579020,0.29839,3356.2,3355.6,1.04452]
[1735669579220,0.29839,3356.2,3356.0,0.2984]
[1735669579420,0.29841,3355.9,3355.5,3.2078]
[1735669579622,4.0918,3356.3,3355.5,3.2078]
[1735669579823,0.2984,3356.0,3355.8,0.29841]
[1735669580320,4.0918,3356.3,3355.8,0.29841]
[1735669580509,0.2984,3356.0,3355.8,0.29841]
[1735669581010,4.0918,3356.3,3355.9,0.29841]
[1735669581011,0.2984,3356.1,3355.9,0.29841]
[1735669581213,0.2984,3356.1,3356.0,0.2984]
[1735669581621,4.0918,3356.3,3356.0,0.2984]
[1735669581826,0.29839,3356.2,3356.0,0.2984]
[1735669582116,3.2078,3356.3,3356.2,0.29838]
[1735669582320,3.51393142,3356.5,3356.4,0.29837]
[1735669582524,3.51393142,3356.6,3356.5,0.29836]
[1735669583319,1.16279,3357.3,3356.5,0.29836]
[1735669583320,0.8645,3357.3,3356.6,0.74586]
[1735669583517,0.8645,3357.3,3356.8,3.2078]
[1735669583719,1.16279,3357.3,3357.2,0.29829]
[1735669583918,0.8645,3357.3,3357.2,0.29829]
[1735669584416,0.8645,3357.3,3357.0,0.2983]
[1735669584612,0.2983,3357.2,3357.1,0.2983]
[1735669585416,1.16279,3357.3,3357.2,0.29829]
[1735669586224,0.4439,3357.3,3357.2,0.29829]
[1735669586422,0.74219,3357.3,3357.2,0.29829]
[1735669587028,2.34077628,3357.4,3356.9,0.7458]
[1735669587325,2.34077628,3357.4,3357.3,0.29829]
[1735669587822,2.34077628,3357.4,3357.2,0.29829]
[1735669588128,0.29829,3357.3,3357.2,0.29829]
[1735669590025,3.2078,3357.6,3356.9,4.64566664]
[1735669590231,0.29829,3357.3,3357.2,0.29829]
[1735669590728,3.2078,3357.6,3356.7,8.73086664]
[1735669590925,0.29833,3356.8,3356.7,5.06996664]
[1735669591126,0.29833,3356.8,3356.7,4.64566664]
[1735669591529,0.29836,3356.5,3356.4,0.29836]
[1735669591725,1.80290007,3356.9,3356.3,5.09116664]
[1735669591925,0.29834,3356.7,3356.5,0.29835]
[1735669592129,0.29834,3356.7,3356.6,0.29835]
[1735669592830,0.29834,3356.7,3356.6,0.29834]
[1735669593131,0.9175,3357.1,3356.3,0.4455]
[1735669593331,0.29833,3356.8,3356.7,0.29833]
[1735669594233,0.9175,3357.1,3356.3,2.99433007]
[1735669594429,0.9175,3357.1,3356.6,3.2078]
[1735669594638,0.4629,3357.1,3357.0,0.29831]
[1735669595028,0.7612,3357.1,3357.0,0.29831]
[1735669595334,0.4629,3357.1,3357.0,0.29831]
[1735669595731,0.4481,3357.4,3356.7,1.19984]
[1735669596034,0.4481,3357.4,3357.3,0.29829]
[1735669596035,0.74639,3357.4,3357.3,0.29829]
[1735669596230,0.4481,3357.4,3357.0,3.2078]
[1735669596533,0.29829,3357.3,3357.2,0.29829]
[1735669597936,0.74638,3357.4,3357.3,0.29829]
[1735669598128,0.29829,3357.3,3357.2,0.29829]
[1735669598830,0.4481,3357.4,3357.0,3.631]
[1735669599228,0.29829,3357.3,3357.2,0.29829]
[1735669600324,2.33857601,3357.9,3357.8,0.29824]
[1735669601226,2.63680601,3357.9,3357.8,0.29824]
[1735669601531,2.63680601,3357.9,3357.6,4.1077]
[1735669601733,2.33857601,3357.9,3357.1,3.6427]
[1735669601930,0.29829,3357.3,3357.2,1.321]
[1735669602334,0.29829,3357.3,3357.2,1.61929]
[1735669602534,0.29829,3357.3,3357.2,1.321]
[1735669602835,0.9124,3357.5,3357.2,1.61929]
[1735669603035,0.29828,3357.4,3357.2,1.321]
[1735669603533,0.29828,3357.4,3357.3,0.29829]
[1735669603839,0.29829,3357.3,3357.2,1.321]